bitfinex-derivatives/quotes_ETHF0:USTF0_20251118
["timestamp","ask_amount","ask_price","bid_price","bid_amount"]
[1763509680796,0.75415,3116.1,3116.0,0.90941423]
[1763509681586,0.75415,3116.1,3116.0,0.38925423]
[1763509681793,0.75415,3116.1,3116.0,0.00325423]
[1763509682090,1.5125651,3116.1,3116.0,0.00325423]
[1763509682488,1.5125651,3116.1,3115.4,3.72806]
[1763509682489,0.75425,3115.5,3115.4,3.2078]
[1763509682696,0.75425,3115.5,3115.4,3.4542]
[1763509683105,0.7543,3115.3,3115.2,0.2464]
[1763509683603,0.234,3115.3,3115.2,0.76971292]
[1763509683907,0.75428,3115.3,3115.2,0.76971292]
[1763509685292,3.21261,3115.8,3115.2,0.76971292]
[1763509685293,0.52027,3115.4,3115.3,0.52028]
[1763509685604,0.75428,3115.3,3115.2,0.76972292]
[1763509689007,0.234,3115.3,3115.2,0.76972292]
[1763509689206,3.44661,3115.8,3115.7,0.2464]
[1763509689407,3.21261,3115.8,3115.7,0.2464]
[1763509689908,3.21261,3115.8,3115.7,0.76662]
[1763509689909,3.73281,3115.8,3115.7,0.76662]
[1763509690411,3.21261,3115.8,3115.7,0.76662]
[1763509690602,3.44661,3115.8,3115.7,0.76662]
[1763509691210,0.00481,3115.8,3115.7,1.900079]
[1763509691415,0.9698,3116.5,3116.4,0.7665]
[1763509692711,1.48988,3116.5,3116.4,0.7665]
[1763509693099,0.9698,3116.5,3116.4,0.7665]
[1763509695209,0.75413,3116.2,3116.1,0.00481]
[1763509695507,0.52012,3116.3,3116.2,0.2464]
[1763509695704,0.75412,3116.3,3116.2,0.2464]
[1763509696913,0.75412,3116.3,3116.2,0.76653]
[1763509697211,0.88302,3116.3,3116.2,0.76653]
[1763509697412,0.88302,3116.3,3116.2,0.2464]
[1763509697613,0.75413,3116.2,3116.1,0.00481]
[1763509699607,0.75423,3115.6,3115.5,0.1396]
[1763509700007,0.75423,3115.6,3115.5,0.65985]
[1763509700513,0.234,3115.6,3115.5,0.90625]
[1763509701116,0.75423,3115.6,3115.5,0.90625]
[1763509701317,0.36877315,3115.6,3115.5,0.90625]
[1763509702414,0.36877315,3115.6,3115.5,0.386]
[1763509702616,0.47147315,3115.6,3115.5,0.386]
[1763509703718,0.47147315,3115.6,3115.5,0.90625]
[1763509704715,0.62293,3115.6,3115.5,0.90625]
[1763509705921,0.52023,3115.6,3115.5,0.90625]
[1763509706323,0.62293,3115.6,3115.5,0.386]
[1763509706622,0.62293,3115.6,3115.5,0.3795]
[1763509707721,0.52023,3115.6,3115.5,0.89975]
[1763509708022,1.47673,3115.6,3115.5,0.89975]
[1763509708521,0.9565,3115.6,3115.5,0.89975]
[1763509712624,1.47673,3115.6,3115.5,0.89975]
[1763509715433,1.57933,3115.6,3115.5,0.3686]
[1763509715828,1.0591,3115.6,3115.5,0.88885]
[1763509716439,0.9565,3115.6,3115.5,0.88885]
[1763509716843,1.47673,3115.6,3115.5,0.88885]
[1763509717137,0.9565,3115.6,3115.5,0.88885]
[1763509717440,0.1289,3116.3,3116.2,0.74913]
[1763509718342,0.3722,3116.3,3116.2,0.74913]
[1763509718544,0.76337,3116.7,3116.6,0.229]
[1763509718736,0.76337,3116.7,3116.6,0.74907]
[1763509719142,0.76337,3116.7,3116.6,0.229]
[1763509719538,0.76628186,3116.7,3116.6,0.229]
[1763509720544,0.76628186,3116.7,3116.6,0.74907]
[1763509720944,0.24621186,3116.7,3116.6,0.74907]
[1763509722749,0.76626186,3116.7,3116.6,0.74907]
[1763509723746,0.76626186,3116.7,3116.6,0.52007]
[1763509724743,0.76626186,3116.7,3116.6,0.74907]
[1763509725344,0.6618,3116.5,3116.4,0.52007]
[1763509725646,0.7634,3116.4,3116.3,3.73272]
[1763509726049,0.7634,3116.4,3116.3,3.21261]
[1763509726843,0.7634,3116.4,3116.3,0.00481]
[1763509727038,0.7634,3116.4,3116.3,0.75393]
[1763509727445,0.7634,3116.4,3116.3,0.23381]
[1763509727644,0.7634,3116.4,3116.3,0.75393]
[1763509728450,0.2433,3116.4,3116.3,0.75393]
[1763509728854,0.7634,3116.4,3116.3,0.75393]
[1763509729948,0.52007,3116.6,3116.5,0.89297]
[1763509730153,0.76626186,3116.7,3116.6,0.74907]
[1763509731351,0.76626186,3116.7,3116.3,3.44161]
[1763509731352,0.2433,3116.4,3116.3,3.44161]
[1763509731552,0.5201,3116.4,3116.3,3.9617]
[1763509731953,0.52007,3116.6,3116.5,0.66397]
[1763509732154,0.52297186,3116.7,3116.6,0.74907]
[1763509732455,0.76627186,3116.7,3116.6,0.74907]
[1763509733554,0.52297186,3116.7,3116.6,1.85777844]
[1763509733747,0.76627186,3116.7,3116.6,0.74907]
[1763509741850,0.52297186,3116.7,3116.6,0.74907]
[1763509742050,0.52297186,3116.7,3116.5,0.1439]
[1763509742051,0.01691,3117.0,3116.9,0.75852]
[1763509742253,0.01691,3117.0,3116.9,1.86722844]
[1763509742455,0.00481,3117.0,3116.9,1.86722844]
[1763509742659,0.76551,3117.0,3116.9,0.52002]
[1763509742960,0.76551,3117.0,3116.9,0.75852]
[1763509743162,0.76864384,3117.0,3116.9,0.75852]
[1763509745358,0.76072,3116.9,3116.8,3.2078]
[1763509746164,0.76072,3116.9,3116.8,3.72783]
[1763509746956,0.76072,3116.9,3116.8,3.96633]
[1763509748570,0.52002,3116.9,3116.8,3.96633]
[1763509748757,0.52794384,3117.0,3116.9,0.75852]
[1763509748966,0.00794384,3117.0,3116.9,0.75852]
[1763509750670,0.76864384,3117.0,3116.9,0.75852]
[1763509751365,0.76864384,3117.0,3116.9,0.2385]
[1763509751566,0.91474384,3117.0,3116.9,0.2385]
[1763509751764,0.91474384,3117.0,3116.8,3.72783]
[1763509751765,0.76072,3116.9,3116.8,3.72783]
[1763509752769,0.76072,3116.9,3116.8,3.2078]
[1763509758375,0.7608,3116.4,3116.3,0.76343]
[1763509759273,0.7608,3116.4,3116.3,0.00481]
[1763509759770,4.31650844,3116.9,3116.3,0.00481]
[1763509759771,0.52007,3116.6,3116.5,0.3766]
[1763509760167,0.76077,3116.6,3116.5,0.3766]
[1763509760565,0.76077,3116.6,3116.3,1.11351844]
[1763509760764,0.7608,3116.4,3116.3,0.00481]
[1763509771080,0.7608,3116.4,3116.3,1e-05]
[1763509771276,0.74832,3115.7,3115.6,3.2078]
[1763509771683,0.74832,3115.7,3115.6,3.4385]
[1763509771880,0.52022,3115.7,3115.6,3.4385]
[1763509772280,0.52018,3115.9,3115.8,0.7509]
[1763509772677,0.52018,3115.9,3115.8,0.2307]
[1763509773084,0.74828,3115.9,3115.8,0.2307]
[1763509773287,0.7483,3115.8,3115.7,0.52021]
[1763509773681,0.74832,3115.7,3115.6,3.95873]
[1763509773889,0.74832,3115.7,3115.6,3.4385]
[1763509774284,0.52022,3115.7,3115.6,3.4385]
[1763509774787,0.52022,3115.7,3115.6,3.95873]
[1763509776086,0.74832,3115.7,3115.6,3.2078]
[1763509777489,0.74838,3115.3,3115.2,3.96182292]
[1763509778078,0.2281,3115.3,3115.2,3.96182292]
[1763509778291,0.2281,3115.5,3115.4,0.75097]
[1763509779690,0.3641,3115.5,3115.4,0.75097]
[1763509779893,0.88436,3115.5,3115.4,0.75097]
[1763509780689,0.88436,3115.5,3115.4,0.52027]
[1763509781493,0.88436,3115.5,3115.4,0.75097]
[1763509783391,0.74836,3115.5,3115.4,0.75097]
[1763509785798,0.74836,3115.5,3115.4,0.2307]
[1763509786394,0.74836,3115.5,3115.4,0.75097]
[1763509787702,0.88436,3115.5,3115.4,0.52027]
[1763509788098,0.88436,3115.5,3115.4,0.75097]
[1763509789803,0.74836,3115.5,3115.4,0.75097]
[1763509790395,0.74836,3115.5,3115.4,0.2307]
[1763509790595,0.88436,3115.5,3115.4,0.2307]
[1763509791104,0.88436,3115.5,3115.4,0.75097]
[1763509792699,0.74836,3115.5,3115.4,0.75097]
[1763509798206,0.88256,3115.5,3115.4,0.75097]
[1763509798415,0.88256,3115.5,3115.4,0.52027]
[1763509798920,4.09036,3115.5,3115.4,0.52027]
[1763509800212,0.75549,3115.3,3115.2,0.23282292]
[1763509800412,0.75549,3115.3,3115.2,0.00302292]
[1763509800718,3.342,3115.5,3115.2,0.00302292]
[1763509800719,3.443,3115.5,3115.4,0.2298]
[1763509801119,3.96325,3115.5,3115.4,0.2298]
[1763509802619,0.75549,3115.3,3115.2,0.23282292]
[1763509802819,0.75549,3115.3,3115.2,0.00302292]
[1763509803419,1.51142034,3115.3,3115.2,0.00302292]
[1763509805525,1.51142034,3115.3,3115.2,0.23282292]
[1763509805724,0.75549,3115.3,3115.2,0.00302292]
[1763509806324,1.51167493,3115.3,3115.2,0.00302292]
[1763509809727,0.75559,3114.7,3114.6,0.5204]
[1763509810024,0.75559,3114.7,3114.6,0.7502]
[1763509810723,0.7589796,3114.7,3114.6,0.75334592]
[1763509811426,0.7589796,3114.7,3114.6,0.23294592]
[1763509811627,0.8618796,3114.7,3114.6,0.75334592]
[1763509813115,0.3414896,3114.7,3114.6,0.75334592]
[1763509813318,0.8618796,3114.7,3114.6,0.75334592]
[1763509815527,0.8618796,3114.7,3114.6,0.52354592]
[1763509815724,0.8618796,3114.7,3114.6,0.75334592]
[1763509819632,0.6266796,3114.7,3114.6,0.75334592]
[1763509819827,0.1062896,3114.7,3114.6,0.75334592]
[1763509822834,0.1062896,3114.7,3114.6,1.86264254]
[1763509827335,0.1062896,3114.7,3114.6,4.1679252]
[1763509827535,3.2203,3115.6,3115.5,0.2437]
[1763509827536,3.4607,3115.6,3115.5,0.2437]
[1763509827839,0.2404,3115.2,3115.1,0.76402]
[1763509828424,0.7607,3115.2,3115.0,0.52032]
[1763509828632,0.2404,3115.1,3115.0,0.52032]
[1763509828934,0.2404,3115.1,3115.0,0.76402]
[1763509829130,0.52032,3115.1,3115.0,0.52032]
[1763509829337,0.52280582,3115.2,3115.1,0.76402]
[1763509830530,0.52280582,3115.2,3115.1,1.87331662]
[1763509830726,0.00249582,3115.2,3115.1,1.87331662]
[1763509833238,0.54242,3115.7,3115.6,0.2437]
[1763509833438,0.0222,3115.7,3115.6,1.87322662]
[1763509833639,0.5202,3115.8,3115.7,0.76392]
[1763509834039,0.5202,3115.8,3115.7,0.2437]
[1763509834241,0.7606,3115.8,3115.7,0.2437]
[1763509834437,0.76467098,3115.8,3115.7,0.76392]
[1763509837145,0.52427098,3115.8,3115.7,0.76392]
[1763509837345,0.76467098,3115.8,3115.7,0.76392]
[1763509837847,0.52427098,3115.8,3115.7,0.76392]
[1763509838047,0.00407098,3115.8,3115.7,0.76392]
[1763509843242,0.00481,3116.1,3116.0,0.91017]
[1763509843443,0.00481,3116.1,3116.0,5.22726662]
[1763509844346,0.00748961,3116.1,3116.0,5.22726662]
[1763509846348,0.76037,3117.2,3117.1,0.2437]
[1763509846750,3.2078,3117.4,3117.0,0.7637]
[1763509846751,0.76038,3117.1,3117.0,0.7637]
[1763509847256,0.76343755,3117.1,3117.0,0.76632954]
[1763509847445,0.76343755,3117.1,3117.0,0.00262954]
[1763509849151,0.76343755,3117.1,3117.0,0.24632954]
[1763509849340,0.76343755,3117.1,3117.0,0.76632954]
[1763509849940,0.76343755,3117.1,3117.0,0.00262954]
[1763509850148,1.87273417,3117.1,3117.0,0.00262954]
[1763509850653,0.76343755,3117.1,3117.0,0.00262954]
[1763509851248,0.76343755,3117.1,3116.7,0.00481]
[1763509851249,0.76043,3116.8,3116.7,0.00481]
[1763509851747,0.76043,3116.8,3116.7,0.76856]
[1763509851949,0.76043,3116.8,3116.7,0.24851]
[1763509852254,0.76043,3116.8,3116.7,0.25141923]
[1763509852556,0.76043,3116.8,3116.7,0.77146923]
[1763509853254,0.76043,3116.8,3116.7,0.25141923]
[1763509853748,0.76043,3116.8,3116.7,0.77146923]
[1763509855158,0.76043,3116.8,3116.7,0.00771923]
[1763509855453,0.52003,3116.8,3116.7,0.77146923]
[1763509855651,0.52002,3116.9,3116.8,0.76371]
[1763509856551,0.76042,3116.9,3116.8,0.76371]
[1763509856855,0.76042,3116.9,3116.8,0.2437]
[1763509857154,0.76042,3116.9,3116.8,0.76373]
[1763509857547,0.76042,3116.9,3116.8,3.97153]
[1763509857747,0.2404,3116.9,3116.8,5.08082662]
[1763509857942,0.52001,3117.0,3116.9,0.52]
[1763509858156,0.74911,3117.0,3116.9,0.7482]
[1763509860253,0.74911,3117.0,3116.8,4.31709662]
[1763509860254,0.00305755,3117.1,3117.0,0.8946]
[1763509862450,0.52303755,3117.1,3117.0,0.8946]
[1763509862652,0.65942,3117.0,3116.9,0.74822]
[1763509862958,0.88852,3117.0,3116.9,0.74822]
[1763509866561,0.3685,3117.0,3116.9,0.74822]
[1763509866761,0.2291,3117.0,3116.9,0.74822]
[1763509867258,0.7491,3117.0,3116.9,0.74822]
[1763509867459,0.2291,3117.0,3116.9,0.74822]
[1763509869561,0.00305755,3117.1,3117.0,0.7482]
[1763509869763,0.0121,3117.6,3117.5,0.89592]
[1763509869958,0.3768,3118.5,3118.4,0.74797]
[1763509870166,0.89655,3118.5,3118.4,3.436]
[1763509870352,0.89655,3118.5,3118.4,3.95577]
[1763509870558,0.74054672,3118.5,3118.4,3.95577]
[1763509870756,0.51407626,3118.5,3118.4,3.95577]
[1763509871065,0.75147954,3118.5,3118.4,3.95577]
[1763509871365,0.00262954,3118.5,3118.4,3.95577]
[1763509871767,0.52237954,3118.5,3118.4,3.95577]
[1763509872065,0.00262954,3118.5,3118.4,3.95577]
[1763509872862,0.52237954,3118.5,3118.4,3.95577]
[1763509873952,0.75147954,3118.5,3118.4,3.436]
[1763509875267,0.75147954,3118.5,3118.4,3.95577]
[1763509876769,0.74892,3118.1,3118.0,3.436]
[1763509876970,0.74892,3118.1,3118.0,3.5838]
[1763509877270,0.74892,3118.1,3118.0,4.10363]
[1763509877474,0.74892,3118.1,3118.0,3.5838]
[1763509879681,0.74892,3118.1,3118.0,4.10363]
[1763509879888,0.07562954,3118.5,3118.2,0.2282]
[1763509879889,0.5198,3118.3,3118.2,0.2282]
[1763509880789,0.7489,3118.3,3118.2,0.2282]
[1763509881585,0.76502,3118.1,3118.0,5.23192662]
[1763509881782,0.2452,3118.1,3118.0,5.23192662]
[1763509882782,0.76502,3118.1,3118.0,5.23192662]
[1763509883082,0.00262954,3118.5,3118.4,0.2472]
[1763509883083,0.52237954,3118.5,3118.4,0.2472]
[1763509883284,0.52237954,3118.5,3118.4,1.35649662]
[1763509884082,0.00262954,3118.5,3118.4,5.08406662]
[1763509884891,0.00262954,3118.5,3118.4,5.10635623]
[1763509888988,0.53627,3119.0,3118.9,0.2293]
[1763509889288,3.2078,3119.2,3118.9,0.74898]
[1763509889495,0.51964,3119.2,3119.1,0.74895]
[1763509889984,0.76474,3119.2,3119.1,0.75296719]
[1763509894494,9.97254,3119.2,3119.1,1.719e-05]
[1763509895493,9.97579521,3119.2,3119.1,1.719e-05]
[1763509895689,0.76483,3118.6,3118.5,3.2078]
[1763509896697,0.76483,3118.6,3118.5,3.21103149]
[1763509897491,3.97263,3118.6,3118.5,0.00323149]
[1763509897696,3.97263,3118.6,3117.5,0.1478]
[1763509897697,0.76498,3117.7,3117.6,3.4371]
[1763509898395,0.76498,3117.7,3117.6,3.2078]
[1763509898892,0.76498,3117.7,3117.6,3.21048226]
[1763509901200,0.76498,3117.7,3117.6,3.43978226]
[1763509901399,0.76498,3117.7,3117.6,3.21048226]
[1763509903002,3.97278,3117.7,3117.6,0.00268226]
[1763509903600,3.97278,3117.7,3117.6,0.23198226]
[1763509903796,0.51988,3117.7,3117.6,0.23198226]
[1763509904595,3.97278,3117.7,3117.6,0.00268226]
[1763509905794,0.76513,3116.8,3116.7,3.4371]
[1763509906000,0.76517,3116.6,3116.5,0.3782]
[1763509906697,0.76517,3116.6,3116.5,0.38126561]
[1763509906905,0.76801368,3116.6,3116.5,0.38126561]
[1763509911202,0.52291368,3116.6,3116.5,0.38126561]
[1763509911604,0.76801368,3116.6,3116.5,0.38126561]
[1763509911807,0.76801368,3116.6,3116.5,0.00306561]
[1763509913400,0.76801368,3116.6,3116.5,0.38126561]
[1763509914205,0.76801368,3116.6,3116.5,0.00306561]
[1763509914409,0.76801368,3116.6,3116.5,0.38126561]
[1763509914609,0.76801368,3116.6,3116.5,0.00306561]
[1763509915008,0.76801368,3116.6,3116.5,0.38126561]
[1763509919319,0.76801368,3116.6,3116.5,0.00306561]
[1763509920021,0.76801368,3116.6,3116.5,0.37616561]
[1763509922318,0.52291368,3116.6,3116.5,0.37616561]
[1763509922820,0.77091368,3116.6,3116.5,0.37616561]
[1763509923219,0.52291368,3116.6,3116.5,0.37616561]
[1763509923520,0.52291368,3116.6,3116.5,0.89625561]
[1763509924417,0.52291368,3116.6,3116.5,0.37616561]
[1763509924816,0.52291368,3116.6,3116.5,0.89625561]
[1763509925424,0.52291368,3116.6,3116.5,0.37616561]
[1763509926518,0.00284368,3116.6,3116.5,0.89625561]
[1763509926717,0.00284368,3116.6,3116.5,6.89625561]
[1763509926921,3.2078,3117.3,3117.2,0.2283]
[1763509926922,3.72775,3117.3,3117.2,0.2283]
[1763509927618,3.97575,3117.3,3117.2,0.2283]
[1763509927822,0.76795,3117.3,3117.2,0.2283]
[1763509928022,0.77099864,3117.3,3117.2,0.2283]
[1763509930223,0.77099864,3117.3,3117.0,0.1448]
[1763509930224,0.51998,3117.1,3117.0,0.1448]
[1763509930417,0.76802,3116.9,3116.8,3.2078]
[1763509930624,0.76802,3116.9,3116.8,3.4361]
[1763509930929,0.76802,3116.9,3116.8,3.2078]
[1763509932031,0.52002,3116.9,3116.8,3.4361]
[1763509932731,0.76802,3116.9,3116.8,3.4361]
[1763509932931,0.76802,3116.9,3116.8,3.2078]
[1763509933130,0.76802,3116.9,3116.8,3.4361]
[1763509935422,0.76802,3116.9,3116.8,0.2283]
[1763509937134,0.52007,3116.6,3116.5,0.37616561]
[1763509937339,0.76807,3116.6,3116.5,0.37616561]
[1763509937729,0.76807,3116.6,3116.5,0.89625561]
[1763509938330,0.52007,3116.6,3116.5,0.89625561]
[1763509939040,0.76807,3116.6,3116.5,0.37616561]
[1763509941445,0.248,3116.6,3116.5,0.37616561]
[1763509941640,0.52007,3116.6,3116.5,0.89625561]
[1763509941844,0.52006,3116.7,3116.6,0.75125]
[1763509946951,0.52006,3116.7,3116.6,0.74885]
[1763509949151,0.75766,3116.7,3116.6,0.2312]
[1763509949346,0.76477,3116.6,3116.5,0.38916561]
[1763509949744,0.52007,3116.6,3116.5,0.90925561]
[1763509950046,0.52006,3116.7,3116.6,0.76136]
[1763509950446,0.52006,3116.7,3116.6,0.2413]
[1763509950749,0.76476,3116.7,3116.6,0.2413]
[1763509950948,0.76476,3116.7,3116.6,0.76137]
[1763509951150,0.52006,3116.7,3116.6,0.76137]
[1763509953245,0.76476,3116.7,3116.6,0.2413]
[1763509953647,0.76476,3116.7,3116.6,0.76137]
[1763509953848,0.52006,3116.7,3116.6,0.76137]
[1763509960749,0.76769864,3117.3,3117.2,0.76127]
[1763509960955,1.27471641,3117.3,3117.2,0.76127]
[1763509961152,0.00304864,3117.3,3117.2,0.76127]
[1763509962054,0.00304864,3117.3,3117.1,1.10796664]
[1763509962055,0.0043,3117.8,3117.7,0.2413]
[1763509962956,1.28016742,3117.8,3117.7,0.2413]
[1763509963359,0.52817645,3117.8,3117.7,0.2413]
[1763509964460,0.00830645,3117.8,3117.7,0.76118]
[1763509964757,0.00481,3118.1,3118.0,0.51983]
[1763509964962,3.97217,3119.0,3118.9,0.2413]
[1763509965150,4.7232171,3119.0,3118.9,0.2413]
[1763509965350,3.97217,3119.0,3118.9,0.2413]
[1763509965556,3.97217,3119.0,3118.9,0.76098]
[1763509965750,0.51967,3119.0,3118.9,0.76098]
[1763509965959,0.76437,3119.0,3118.9,0.24519673]
[1763509967355,0.76437,3119.0,3118.9,0.00389673]
[1763509967965,0.76437,3119.0,3118.9,0.24519673]
[1763509968166,0.76437,3119.0,3118.9,0.00389673]
[1763509970560,0.83347,3119.0,3118.9,0.00389673]
[1763509972364,0.76437,3119.0,3118.9,0.00389673]
[1763509972663,0.76437,3119.0,3118.9,0.24519673]
[1763509973061,0.51967,3119.0,3118.9,0.24519673]
[1763509973663,0.51967,3119.0,3118.9,0.76487673]
[1763509974568,0.51727,3119.0,3118.9,0.76487673]
[1763509976563,0.00481,3119.3,3119.0,0.142]
[1763509976769,0.76913,3119.3,3119.2,0.2413]
[1763509977073,0.76433,3119.2,3119.1,0.51964]
[1763509977263,0.76435,3119.1,3119.0,0.66166]
[1763509977462,0.76435,3119.1,3119.0,0.90296]
[1763509978965,0.51965,3119.1,3119.0,0.90296]
[1763509980064,0.75155,3119.1,3119.0,0.3833]
[1763509980373,0.75157,3119.0,3118.9,0.24989673]
[1763509980764,0.75157,3119.0,3118.9,0.00389673]
[1763509981869,0.82067,3119.0,3118.9,0.00389673]
[1763509982059,0.2319,3118.7,3118.3,3.2078]
[1763509982259,0.75162,3118.7,3118.3,3.2078]
[1763509982973,0.75162,3118.7,3118.6,0.25081]
[1763509983163,0.75463991,3118.7,3118.6,0.00796499]
[1763509985867,0.00301991,3118.7,3118.6,0.77369499]
[1763509986066,0.00481,3119.3,3118.6,0.77369499]
[1763509986067,0.51969,3118.9,3118.8,0.76568]
[1763509986461,0.75159,3118.9,3118.8,0.76568]
[1763509987169,0.75249899,3118.9,3118.8,0.76568]
[1763509987768,0.7516,3118.8,3118.7,3.2078]
[1763509988568,0.7516,3118.8,3118.7,3.72752]
[1763509988771,0.7516,3118.8,3118.7,3.2078]
[1763509989375,0.7516,3118.8,3118.7,3.97352]
[1763509990372,0.7516,3118.8,3118.7,3.2078]
[1763509993573,1.50086879,3118.8,3118.7,3.2078]
[1763509994880,0.75162,3118.7,3118.6,0.00796499]
[1763509995079,1.50088879,3118.7,3118.6,0.00796499]
[1763509995976,1.50088879,3118.7,3118.6,0.25396499]
[1763509996181,0.98116879,3118.7,3118.6,0.25396499]
[1763509996482,0.2319,3118.7,3118.6,0.25396499]
[1763509996978,0.75162,3118.7,3118.6,0.25396499]
[1763509999281,0.75162,3118.7,3118.6,0.00796499]
[1763509999981,0.75162,3118.7,3118.6,0.25396499]
[1763510000278,0.75162,3118.7,3118.6,0.77369499]
[1763510000482,0.52059899,3118.9,3118.8,0.7657]
[1763510000677,0.52059899,3118.9,3118.8,5.079976]
[1763510000879,0.75249899,3118.9,3118.8,4.560276]
[1763510001078,0.7488,3118.8,3118.7,0.51972]
[1763510001285,0.7488,3118.8,3118.7,0.74782]
[1763510004793,0.5197,3118.8,3118.7,0.74782]
[1763510005384,0.00090899,3118.9,3118.8,0.7478]
[1763510005590,0.00090899,3118.9,3118.8,5.062076]
[1763510006082,0.50343202,3119.0,3118.9,0.74778]
[1763510012791,0.51966,3119.1,3119.0,0.66633]
[1763510012992,0.51964,3119.2,3119.1,0.51963]
[1763510013197,0.04791,3119.3,3119.2,0.75853]
[1763510013391,0.04791,3119.3,3119.2,3.96633]
[1763510014690,0.56753,3119.3,3119.2,3.96633]
[1763510014891,0.04791,3119.3,3119.2,3.96633]
[1763510016190,0.5196,3119.5,3119.4,0.51957]
[1763510016496,0.5196,3119.5,3119.4,0.75847]
[1763510017293,0.0032067,3119.8,3119.6,0.51956]
[1763510017294,0.51957,3119.7,3119.6,0.51956]
[1763510017489,0.51957,3119.7,3119.6,0.75846]
[1763510022400,0.5227467,3119.8,3119.7,0.75845]
[1763510022712,0.51948,3120.2,3120.1,0.51945]
[1763510023011,3.2078,3120.4,3120.3,0.2389]
[1763510023208,3.4389,3120.4,3120.3,0.2389]
[1763510023599,3.95833,3120.4,3120.3,0.2389]
[1763510024811,3.95833,3120.4,3120.3,0.75835]
[1763510028816,0.75053,3120.4,3120.3,0.75835]
[1763510029515,0.51943,3120.4,3120.3,0.75835]
[1763510029815,0.51943,3120.6,3120.5,0.66611]
[1763510030014,0.51943,3120.6,3120.5,0.90501]
[1763510030416,0.75053,3120.6,3120.5,0.90501]
[1763510032612,0.51939,3120.7,3120.6,0.51938]
[1763510032813,0.51939,3120.7,3120.6,0.75828]
[1763510033014,0.51945,3120.4,3120.3,0.51942]
[1763510033311,0.75055,3120.4,3120.3,0.75832]
[1763510035922,0.75055,3120.4,3120.3,0.2389]
[1763510037717,0.76377,3120.2,3120.1,3.72728]
[1763510037923,0.76377,3120.2,3120.1,3.95128]
[1763510039513,0.76377,3120.2,3120.1,3.4318]
[1763510041829,0.76377,3120.2,3120.1,3.95128]
[1763510047028,0.51947,3120.2,3120.1,3.95128]
[1763510051026,0.51946,3120.3,3120.2,0.74343]
[1763510054229,0.76376,3120.3,3120.2,0.74343]
[1763510057135,0.76376,3120.3,3120.2,0.224]
[1763510061529,0.74797,3120.2,3120.1,3.72728]
[1763510061736,0.74797,3120.2,3120.1,3.96738]
[1763510063035,0.74797,3120.2,3120.1,3.4479]
[1763510064237,0.74798,3120.1,3120.0,0.00481]
[1763510064534,1.4978259,3120.1,3120.0,0.00481]
[1763510065536,0.74812,3119.3,3119.2,3.2078]
[1763510067032,0.74817,3119.0,3118.9,0.00481]
[1763510067734,0.81957,3119.0,3118.9,0.00481]
[1763510068036,0.74817,3119.0,3118.9,0.24011]
[1763510070838,0.51965,3119.2,3119.1,0.75494]
[1763510071032,0.51965,3119.2,3119.1,0.2353]
[1763510071332,0.75505,3119.1,3119.0,0.1474]
[1763510071528,0.75505,3119.1,3119.0,0.90237]
[1763510072142,0.51964,3119.2,3119.1,0.75493]
[1763510072537,0.51964,3119.2,3119.1,0.2353]
[1763510072834,0.75505,3119.1,3119.0,0.3827]
[1763510073440,0.75507,3119.0,3118.9,1.63100591]
[1763510073642,0.75507,3119.0,3118.9,1.86630591]
[1763510073836,0.51965,3119.1,3119.0,0.90234]
[1763510075530,0.75505,3119.1,3119.0,0.90234]
[1763510076435,0.51965,3119.1,3119.0,0.90234]
[1763510082541,0.75505,3119.1,3119.0,0.90234]
[1763510083841,0.75505,3119.1,3119.0,0.66704]
[1763510084450,0.75505,3119.1,3119.0,0.90234]
[1763510086444,0.51965,3119.1,3119.0,0.90234]
[1763510087948,0.00481,3119.6,3119.2,0.2353]
[1763510088251,0.75978,3119.6,3119.5,0.3827]
[1763510088553,0.75978,3119.6,3119.5,0.90228]
[1763510089253,0.75978,3119.6,3119.5,0.3827]
[1763510092752,0.75978,3119.6,3119.5,0.90228]
[1763510094048,0.52438,3119.6,3119.5,2.00879591]
[1763510099550,0.75978,3119.6,3119.5,0.90228]
[1763510099754,0.7444,3119.4,3119.3,5.06632591]
[1763510100148,0.5196,3119.4,3119.3,5.06632591]
[1763510100451,0.52439,3119.6,3119.5,0.51958]
[1763510100657,0.52439,3119.6,3119.5,0.89698]
[1763510101249,0.74919,3119.6,3119.5,0.3774]
[1763510101449,0.74919,3119.6,3119.5,0.145]
[1763510101955,0.74919,3119.6,3119.5,0.66458]
[1763510102155,0.74919,3119.6,3119.5,0.89698]
[1763510102355,0.74919,3119.6,3119.3,3.2078]
[1763510102356,0.2248,3119.4,3119.3,3.72741]
[1763510102956,0.5196,3119.4,3119.3,3.72741]
[1763510103157,0.5196,3119.4,3119.3,3.95981]
[1763510104662,0.7444,3119.4,3119.3,3.95981]
[1763510105657,0.7444,3119.4,3119.3,3.4402]
[1763510105858,0.2248,3119.0,3118.9,3.73228]
[1763510106050,0.74447,3119.0,3118.9,0.00481]
[1763510106568,0.81977,3119.0,3118.9,0.00481]
[1763510106859,0.74447,3119.0,3118.9,0.00481]
[1763510108658,0.74447,3119.0,3118.9,0.23721]
[1763510110257,3.95227,3119.0,3118.9,0.23721]
[1763510110859,3.95227,3119.0,3118.9,0.75689]
[1763510111164,0.51965,3119.2,3119.1,0.75205]
[1763510111965,3.2078,3119.5,3119.0,0.66466]
[1763510111966,0.74445,3119.1,3119.0,0.66466]
[1763510112362,0.74445,3119.1,3119.0,0.89706]
[1763510112558,0.74445,3119.1,3119.0,0.3774]
[1763510112760,0.74445,3119.1,3119.0,0.89707]
[1763510113068,0.74445,3119.1,3119.0,0.3774]
[1763510114369,0.51965,3119.1,3119.0,0.89707]
[1763510117262,0.51963,3119.3,3119.2,0.5196]
[1763510117567,0.51963,3119.3,3119.2,1.85851591]
[1763510118172,0.00481,3119.6,3119.5,0.89698]
[1763510118366,0.00481,3119.6,3119.5,2.00349591]